bitfinex/quotes_ETHUSD_20250215
["timestamp","ask_amount","ask_price","bid_price","bid_amount"]
[1739618549303,8.302,2704.1,2703.6,0.44605209]
[1739618549504,8.567,2704.1,2703.6,0.44605209]
[1739618549831,8.302,2704.1,2703.6,0.44605209]
[1739618550008,8.567,2704.1,2703.7,3.69849]
[1739618550212,8.567,2704.1,2703.5,4.4604609]
[1739618550414,8.567,2704.1,2703.6,3.69873]
[1739618550615,8.567,2704.1,2703.5,0.7616009]
[1739618550823,3.69858,2703.8,2703.5,9e-07]
[1739618551016,4.513994,2703.8,2703.5,9e-07]
[1739618551225,3.69864,2703.7,2703.5,9e-07]
[1739618552222,3.69877,2703.6,2703.5,9e-07]
[1739618559618,5.00597,2703.6,2703.5,9e-07]
[1739618560070,10.22497,2703.6,2703.5,9e-07]
[1739618560268,11.77211252,2703.6,2703.5,9e-07]
[1739618565765,12.03711252,2703.6,2703.5,9e-07]
[1739618570141,0.73240124,2703.8,2703.5,9e-07]
[1739618570347,0.265,2703.9,2703.6,0.7522]
[1739618573167,8.302,2704.1,2703.6,7.2045167]
[1739618573463,0.265,2704.2,2703.7,0.7522]
[1739618573669,0.265,2704.2,2703.7,1.54786276]
[1739618573869,0.265,2704.2,2703.7,5.24648276]
[1739618574753,3.96296,2704.2,2703.7,1.54786276]
[1739618575070,3.96296,2704.2,2703.7,5.24646276]
[1739618575756,3.96296,2704.2,2703.7,1.54786276]
[1739618575961,3.69821,2704.1,2703.7,0.7522]
[1739618576157,4.4495,2704.0,2703.5,9e-07]
[1739618576377,3.6983,2704.0,2703.5,9e-07]
[1739618576663,3.96297,2704.2,2703.6,4.45095]
[1739618576873,7.66102,2704.2,2703.6,4.45095]
[1739618577073,3.96297,2704.2,2703.6,4.45095]
[1739618577244,3.69809,2704.1,2703.6,4.45095]
[1739618577575,3.69809,2704.1,2703.6,5.26594209]
[1739618577778,3.69809,2704.1,2703.6,1.56719209]
[1739618578158,3.6983,2704.0,2703.6,1.56719209]
[1739618578364,3.69809,2704.1,2703.6,1.56719209]
[1739618578570,3.69809,2704.1,2703.6,5.26595209]
[1739618579274,3.6984,2703.9,2703.6,0.7522]
[1739618579439,3.69863,2703.7,2703.5,9e-07]
[1739618579840,3.69877,2703.6,2703.5,9e-07]
[1739618580239,5.91745,2703.9,2703.5,9e-07]
[1739618580439,5.91758,2703.8,2703.5,9e-07]
[1739618580678,3.69845,2703.9,2703.5,9e-07]
[1739618581043,3.69858,2703.8,2703.5,9e-07]
[1739618581574,3.69845,2703.9,2703.5,9e-07]
[1739618581575,3.69864,2703.7,2703.5,9e-07]
[1739618582848,3.69877,2703.6,2703.5,9e-07]
[1739618583046,5.91777,2703.6,2703.5,9e-07]
[1739618584487,3.69864,2703.7,2703.5,9e-07]
[1739618584690,3.69843,2703.9,2703.6,0.7594]
[1739618585664,7.39687,2703.9,2703.6,0.7594]
[1739618586179,3.69863,2703.7,2703.6,0.7594]
[1739618586844,3.69863,2703.7,2703.5,9e-07]
[1739618586845,3.69877,2703.6,2703.5,9e-07]
[1739618587044,10.356056,2703.7,2703.5,9e-07]
[1739618587266,5.91777,2703.6,2703.5,9e-07]
[1739618587658,9.71497,2703.6,2703.5,9e-07]
[1739618589270,8.91777,2703.6,2703.5,9e-07]
[1739618589471,4.6016106,2703.6,2703.5,9e-07]
[1739618589642,4.438336,2703.7,2703.5,9e-07]
[1739618589847,3.69858,2703.8,2703.5,9e-07]
[1739618590478,3.69844,2703.9,2703.5,9e-07]
[1739618590479,3.69863,2703.7,2703.5,9e-07]
[1739618592165,3.69851,2703.8,2703.5,9e-07]
[1739618592367,5.91745,2703.9,2703.5,9e-07]
[1739618592791,2.219,2703.9,2703.6,0.7933]
[1739618593955,6.535704,2704.0,2703.6,0.7933]
[1739618594417,6.535654,2704.0,2703.6,0.7933]
[1739618594941,3.69843,2703.9,2703.6,0.7933]
[1739618595289,3.69851,2703.8,2703.6,0.7933]
[1739618595531,3.69843,2703.9,2703.6,0.7933]
[1739618596536,2.837414,2704.0,2703.6,0.7933]
[1739618596727,2.219,2704.0,2703.6,0.7933]
[1739618597432,5.9173,2704.0,2703.6,0.7933]
[1739618597932,3.69836,2703.9,2703.6,0.7933]
[1739618599044,5.91724,2704.0,2703.6,0.7933]
[1739618600137,3.69845,2703.9,2703.6,0.7933]
[1739618601038,4.316895,2703.9,2703.6,0.7933]
[1739618601239,4.316895,2703.9,2703.5,9e-07]
[1739618602360,3.69845,2703.9,2703.5,9e-07]
[1739618607023,3.69844,2703.9,2703.5,9e-07]
[1739618607235,5.9173,2704.0,2703.6,0.7933]
[1739618610714,3.69816,2704.1,2703.6,0.7933]
[1739618610940,3.69827,2704.0,2703.6,0.7933]
[1739618611159,7.39662,2704.0,2703.6,0.7933]
[1739618611370,3.69839,2703.9,2703.6,0.7933]
[1739618611653,2.219,2703.8,2703.6,0.7933]
[1739618611858,3.69839,2703.9,2703.6,0.7933]
[1739618612357,5.91727,2704.0,2703.6,0.7933]
[1739618613757,3.69836,2703.9,2703.5,9e-07]
[1739618614954,5.91727,2704.0,2703.6,0.7714]
[1739618615146,3.69827,2704.0,2703.6,0.7714]
[1739618616562,3.69844,2703.9,2703.6,0.7714]
[1739618617123,5.91727,2704.0,2703.6,0.7714]
[1739618618433,9.61561,2704.0,2703.6,0.7714]
[1739618618845,3.69837,2703.9,2703.6,0.7714]
[1739618619658,5.91727,2704.0,2703.6,0.7714]
[1739618621464,3.69837,2703.9,2703.6,0.7714]
[1739618621859,3.69851,2703.8,2703.6,0.7714]
[1739618622161,3.69837,2703.9,2703.6,0.7714]
[1739618622659,7.39681,2703.9,2703.6,0.7714]
[1739618622857,3.69856,2703.8,2703.6,0.7714]
[1739618623060,3.69863,2703.7,2703.6,0.7714]
[1739618623268,3.69863,2703.7,2703.5,9e-07]
[1739618624555,4.51966,2703.9,2703.5,9e-07]
[1739618624763,3.69877,2703.6,2703.5,9e-07]
[1739618624946,4.068647,2703.6,2703.5,9e-07]
[1739618626960,4.889947,2703.6,2703.5,9e-07]
[1739618628380,7.108947,2703.6,2703.5,9e-07]
[1739618628536,10.108947,2703.6,2703.5,9e-07]
[1739618628869,10.658947,2703.6,2703.5,9e-07]
[1739618632743,10.373947,2703.6,2703.5,9e-07]
[1739618632947,9.552647,2703.6,2703.5,9e-07]
[1739618633390,6.552647,2703.6,2703.5,9e-07]
[1739618633675,2.219,2703.6,2703.5,9e-07]
[1739618633891,3.6985,2703.8,2703.5,9e-07]
[1739618634046,3.96373,2703.7,2703.5,9e-07]
[1739618634574,3.69873,2703.7,2703.5,9e-07]
[1739618634877,6.69873,2703.7,2703.6,0.8122]
[1739618635983,3.69873,2703.7,2703.6,0.8122]
[1739618637616,3.69873,2703.7,2703.5,9e-07]
[1739618638048,3.69877,2703.6,2703.5,9e-07]
[1739618638550,3.69873,2703.7,2703.5,9e-07]
[1739618638878,3.69877,2703.6,2703.5,9e-07]
[1739618640382,3.69873,2703.7,2703.5,9e-07]
[1739618640856,6.18345,2703.9,2703.5,9e-07]
[1739618641047,6.18344,2703.9,2703.5,9e-07]
[1739618642365,3.69863,2703.7,2703.5,9e-07]
[1739618642769,6.18344,2703.9,2703.5,9e-07]
[1739618643149,2.485,2703.9,2703.5,9e-07]
[1739618643352,3.69851,2703.8,2703.5,9e-07]
[1739618644700,6.18239,2703.9,2703.5,9e-07]
[1739618645711,3.69851,2703.8,2703.5,9e-07]
[1739618647169,3.69863,2703.7,2703.5,9e-07]
[1739618647372,3.69851,2703.8,2703.5,9e-07]
[1739618647576,3.69863,2703.7,2703.5,9e-07]
[1739618647891,3.69877,2703.6,2703.5,9e-07]
[1739618648098,8.91777,2703.6,2703.5,9e-07]
[1739618648261,10.27547,2703.6,2703.5,9e-07]
[1739618652962,13.7812267,2703.6,2703.5,9e-07]
[1739618654391,14.50539244,2703.6,2703.5,9e-07]
[1739618654589,16.45085252,2703.6,2703.5,9e-07]
[1739618657098,12.94509582,2703.6,2703.5,9e-07]
[1739618658598,16.45085252,2703.6,2703.5,9e-07]
[1739618659480,3.70042,2702.4,2702.2,0.833]
[1739618662167,3.70055,2702.3,2702.2,0.833]
[1739618662669,5.91955,2702.3,2702.2,0.833]
[1739618662889,5.91955,2702.3,2702.1,0.005]
[1739618663098,3.70068,2702.2,2702.1,0.005]
[1739618663487,5.91968,2702.2,2702.1,0.005]
[1739618663691,9.881703,2702.2,2702.1,0.005]
[1739618666892,8.91968,2702.2,2702.1,0.005]
[1739618667999,9.46968,2702.2,2702.1,0.005]
[1739618668189,10.29528,2702.2,2702.1,0.005]
[1739618670927,3.0,2702.2,2702.1,0.005]
[1739618671132,0.8256,2702.7,2702.1,3.70581]
[1739618671302,3.70022,2702.6,2702.1,3.70581]
[1739618671508,0.266,2702.6,2702.3,3.70044]
[1739618671706,3.70068,2702.2,2702.1,0.005]
[1739618671902,6.70068,2702.2,2702.1,0.005]
[1739618672215,7.962716,2702.2,2702.1,0.005]
[1739618673527,6.70068,2702.2,2702.1,0.005]
[1739618673692,6.96768,2702.2,2702.1,0.005]
[1739618675227,3.267,2702.2,2702.1,0.005]
[1739618676235,6.96768,2702.2,2702.1,0.005]
[1739618680440,3.0,2702.2,2702.1,0.005]
[1739618680608,0.267,2702.9,2702.3,0.7608]
[1739618680932,3.70015,2702.6,2702.4,0.7608]
[1739618681321,3.70027,2702.5,2702.4,0.7608]
[1739618681932,3.70044,2702.4,2702.1,0.005]
[1739618682231,3.7,2702.7,2702.2,0.7608]
[1739618682432,3.70013,2702.7,2702.2,0.7608]
[1739618682685,3.69996,2702.8,2702.2,0.7608]
[1739618682807,3.69996,2702.8,2702.3,0.7608]
[1739618683737,8.91864,2703.0,2702.4,0.7859]
[1739618683738,0.267,2702.7,2702.4,0.7859]
[1739618683897,0.267,2702.7,2702.6,0.7859]
[1739618684094,0.268,2702.9,2702.6,0.7859]
[1739618684935,10.39933,2703.0,2702.6,0.7859]
[1739618685237,3.69977,2702.9,2702.6,0.7859]
[1739618685431,3.69988,2702.8,2702.6,0.7859]
[1739618685617,3.69977,2702.9,2702.6,0.7859]
[1739618685798,7.39958,2702.9,2702.6,0.7859]
[1739618686436,3.267,2703.0,2702.6,0.7859]
[1739618686437,3.7,2702.7,2702.6,0.7859]
[1739618686829,3.69996,2702.8,2702.6,0.7859]
[1739618687331,3.7,2702.7,2702.6,0.7859]
[1739618688607,3.7,2702.7,2702.6,0.7817763]
[1739618688826,3.70049,2702.4,2702.2,8.75]
[1739618689516,3.70055,2702.3,2702.2,8.75]
[1739618689712,3.70068,2702.2,2702.1,0.005]
[1739618691721,9.18668,2702.2,2702.1,0.005]
[1739618691937,10.475403,2702.2,2702.1,0.005]
[1739618695523,11.857203,2702.2,2702.1,0.005]
[1739618697261,5.219,2702.0,2701.3,0.7859]
[1739618697428,3.70174,2701.5,2701.3,0.7859]
[1739618697627,7.4035,2701.5,2701.3,0.7859]
[1739618697838,7.40349,2701.5,2701.3,0.7859]
[1739618698153,3.70178,2701.4,2701.3,0.7859]
[1739618698552,3.70174,2701.5,2701.3,0.7859]
[1739618698855,7.4035,2701.5,2701.3,0.7859]
[1739618699055,3.70178,2701.4,2701.3,0.7859]
[1739618699743,3.70174,2701.5,2701.3,0.7859]
[1739618700336,7.40347,2701.5,2701.3,0.7859]
[1739618700836,3.70178,2701.4,2701.3,0.7859]
[1739618701040,3.70214,2701.2,2701.0,0.808]
[1739618702078,3.70219,2701.1,2701.0,0.808]
[1739618702288,0.267,2701.4,2701.0,0.808]
[1739618702489,3.70199,2701.3,2701.0,0.808]
[1739618702779,7.40401,2701.3,2701.0,0.808]
[1739618702942,3.70207,2701.2,2701.0,0.808]
[1739618703844,0.267,2701.4,2701.0,0.808]
[1739618704049,6.70143,2701.7,2701.2,0.808]
[1739618704247,0.267,2701.6,2701.2,0.808]
[1739618704781,3.70164,2701.5,2701.2,0.808]
[1739618704942,0.267,2701.6,2701.2,0.808]
[1739618705574,0.267,2701.6,2701.2,4.51004]
[1739618705776,3.96855,2701.6,2701.2,0.808]
[1739618706180,0.267,2701.6,2701.2,0.808]
[1739618706392,0.267,2701.6,2701.2,4.51004]
[1739618708258,0.267,2701.6,2701.4,0.808]
[1739618708678,3.96855,2701.6,2701.4,0.808]
[1739618708885,3.70164,2701.5,2701.1,0.808]
[1739618709388,0.267,2701.6,2701.1,0.808]
[1739618709753,0.267,2701.6,2701.2,3.70204]
[1739618710355,0.267,2701.6,2701.3,3.70183]
[1739618710652,3.0,2701.9,2701.4,4.5097]
[1739618710868,2.486,2702.0,2701.6,0.808]
[1739618711386,0.267,2702.0,2701.6,0.808]
[1739618711785,3.70142,2701.7,2700.9,7.7581867]
[1739618711960,3.70173,2701.5,2701.0,0.808]
[1739618712449,3.70179,2701.4,2701.0,0.808]
[1739618712882,3.70204,2701.3,2701.0,0.808]
[1739618713385,3.70223,2701.1,2700.9,0.55]
[1739618713554,2.219,2701.3,2700.9,0.55]
[1739618713555,3.70201,2701.3,2700.9,0.55]
[1739618714002,3.70207,2701.2,2700.9,0.55]
[1739618714585,3.70168,2701.5,2701.0,0.8221]
[1739618714773,3.7018,2701.4,2701.0,0.8221]
[1739618714953,3.70168,2701.5,2701.0,0.8221]
[1739618715382,3.70196,2701.3,2701.0,0.8221]
[1739618716288,3.70168,2701.5,2701.0,0.8221]
[1739618717885,3.7018,2701.4,2701.0,0.8221]
[1739618718089,3.70168,2701.5,2701.0,0.8221]
[1739618718471,3.70168,2701.5,2701.0,4.22441709]
[1739618718680,3.70168,2701.5,2701.1,0.8221]
[1739618720289,3.70168,2701.5,2701.1,0.85911913]
[1739618720495,3.70168,2701.5,2701.1,0.8221]
[1739618720991,3.70189,2701.4,2701.1,0.8221]
[1739618723390,6.18857,2701.6,2701.1,0.8221]
[1739618723577,9.89016,2701.6,2701.1,0.8221]
[1739618723894,6.18857,2701.6,2701.1,0.8221]
[1739618724079,6.18857,2701.6,2701.1,4.52429]
[1739618724266,3.70166,2701.5,2701.2,0.8221]
[1739618724447,6.18857,2701.6,2701.2,0.8221]
[1739618724653,3.70157,2701.6,2701.2,0.8221]
[1739618725006,3.70165,2701.5,2701.2,0.8221]
[1739618727066,3.70164,2701.5,2701.2,0.8221]
[1739618729191,0.268,2701.7,2701.2,0.8221]
[1739618729192,2.487,2701.7,2701.2,0.8221]
[1739618729777,2.219,2701.7,2701.2,1.274526]
[1739618729984,2.219,2701.7,2701.3,0.8046]
[1739618730497,3.70133,2701.8,2701.3,4.50652]
[1739618730993,3.70133,2701.8,2701.3,0.8046]
[1739618730994,3.70144,2701.7,2701.3,0.8046]
[1739618731191,4.5224,2701.7,2701.3,0.8046]
[1739618731414,3.70166,2701.5,2701.3,0.8046]
[1739618731563,3.70166,2701.5,2701.1,0.8046]
[1739618731894,3.70174,2701.5,2701.1,0.8046]
[1739618732209,2.219,2701.6,2701.1,3.70216]
[1739618732210,3.70151,2701.6,2701.1,3.70216]
[1739618732360,3.70151,2701.6,2701.2,0.8046]
[1739618733060,5.92031,2701.8,2701.2,0.8046]
[1739618733061,3.7015,2701.7,2701.2,0.8046]
[1739618733309,3.7015,2701.7,2701.2,4.522902]
[1739618733512,3.7015,2701.7,2701.3,0.8046]
[1739618734206,3.70081,2702.2,2701.6,3.70143]
[1739618734418,3.70081,2702.2,2701.7,0.8046]
[1739618734790,3.70083,2702.1,2701.7,0.8046]
[1739618735297,3.70099,2702.0,2701.7,0.8046]
[1739618735862,3.70121,2701.9,2701.4,0.8046]
[1739618736062,3.70124,2701.8,2701.4,0.8046]
[1739618737163,6.74099,2702.0,2701.4,4.50638]
[1739618737368,6.74099,2702.0,2701.4,3.70178]
[1739618737369,5.91999,2702.0,2701.4,3.70178]
[1739618737686,5.91975,2702.2,2701.5,4.50624]
[1739618737877,5.91975,2702.2,2701.6,0.8046]
[1739618738087,5.91975,2702.2,2701.8,0.8046]
[1739618738799,2.219,2702.2,2701.8,4.50581]
[1739618739025,0.269,2702.4,2702.0,4.50554]
[1739618739186,6.1883,2702.5,2702.0,0.8046]
[1739618739987,5.9193,2702.5,2702.0,0.8046]
[1739618740386,5.9193,2702.5,2702.0,4.50555]
[1739618740680,5.9193,2702.5,2702.0,1.625256]
[1739618740896,3.70055,2702.3,2702.0,0.8046]
[1739618741214,9.61969,2702.5,2702.0,0.8046]
[1739618741397,0.0992,2702.3,2702.0,0.8046]
[1739618744040,0.0992,2702.3,2702.1,3.70074]
[1739618744242,0.0992,2702.3,2702.0,4.50547]
[1739618744432,0.0992,2702.3,2702.1,0.820648]
[1739618745458,0.0992,2702.3,2702.0,4.50546]
[1739618746256,0.0992,2702.3,2702.0,0.8046]
[1739618747628,0.0992,2702.3,2702.1,4.45941]
[1739618747861,0.0992,2702.3,2702.1,0.7587]
[1739618750957,0.0992,2702.3,2702.1,4.45951]
[1739618751151,0.0992,2702.3,2702.1,5.62612367]
[1739618751352,0.0992,2702.3,2702.1,1.92531367]
[1739618751954,0.0992,2702.3,2702.1,5.62612367]
[1739618752136,0.0992,2702.3,2702.1,1.92531367]
[1739618752834,0.0992,2702.3,2702.1,0.7587]
[1739618753037,0.0992,2702.3,2702.1,4.45948]
[1739618753534,0.0992,2702.3,2702.2,3.70068]
[1739618754260,0.0992,2702.3,2702.1,4.45948]
[1739618755935,0.0992,2702.3,2702.2,3.70068]
[1739618756125,0.0992,2702.3,2702.2,4.516696]
[1739618756326,0.0992,2702.3,2702.2,3.70068]
[1739618757059,0.0992,2702.3,2702.1,4.45947]
[1739618758172,0.0992,2702.3,2702.1,4.45952]
[1739618758379,0.0992,2702.3,2702.2,3.70068]
[1739618759258,0.0992,2702.3,2702.1,4.45945]
[1739618759776,0.0992,2702.3,2702.1,0.7587]
[1739618760478,0.0992,2702.3,2702.1,4.45949]
[1739618761500,0.0992,2702.3,2702.2,3.70068]
[1739618761654,0.0992,2702.3,2702.1,4.45949]
[1739618761855,0.0992,2702.3,2702.2,3.70068]
[1739618762396,0.0992,2702.3,2702.2,8.0224537]
[1739618762555,0.0992,2702.3,2702.2,8.8444537]
[1739618764056,0.0992,2702.3,2702.2,17.5944537]
[1739618764452,0.0992,2702.3,2702.2,22.8248537]
[1739618766280,8.306,2703.4,2703.1,4.53204]
[1739618766871,8.306,2703.4,2703.1,0.8326]
[1739618767071,8.306,2703.4,2702.9,3.69963]
[1739618767273,8.306,2703.4,2702.9,7.39928]
[1739618767484,8.306,2703.4,2702.9,3.69963]
[1739618767691,8.306,2703.4,2703.1,0.8326]
[1739618768089,8.306,2703.4,2703.1,1.65947009]
[1739618768782,0.267,2703.5,2703.1,1.65947009]
[1739618769696,3.69857,2703.8,2703.3,3.69918]
[1739618769871,3.96557,2703.8,2703.3,3.69918]
[1739618770078,3.69876,2703.7,2703.1,4.53193]
[1739618770382,3.96557,2703.8,2703.2,3.69931]
[1739618770581,7.39715,2703.8,2703.2,3.69931]
[1739618770761,3.69857,2703.8,2703.3,3.6991]
[1739618770963,4.72479,2703.9,2703.3,3.73608778]
[1739618771212,4.72479,2703.9,2703.3,3.6991]
[1739618771508,3.69826,2704.0,2703.4,0.8326]
[1739618771724,3.69849,2703.9,2703.4,4.53164]
[1739618771997,3.69857,2703.8,2703.4,0.8326]
[1739618772213,3.69874,2703.7,2703.1,7.2051267]
[1739618772393,3.69874,2703.7,2703.2,4.53191]
[1739618772572,4.45797,2703.8,2703.2,4.53191]
[1739618772815,4.45797,2703.8,2703.3,3.69917]
[1739618773080,3.69857,2703.8,2703.3,3.69917]
[1739618773280,3.69857,2703.8,2703.3,4.50285267]
[1739618774694,3.69857,2703.8,2703.2,0.8326]
[1739618775208,3.69857,2703.8,2703.2,4.53188]
[1739618775661,3.69857,2703.8,2703.3,3.69916]
[1739618776200,4.45769,2704.0,2703.4,3.69899]
[1739618776408,3.69838,2703.9,2703.4,3.69899]
[1739618777101,3.69852,2703.8,2703.3,3.69916]
[1739618777280,3.69852,2703.8,2703.3,1.17367967]
[1739618778401,3.69846,2703.9,2703.3,4.87274967]
[1739618778606,3.69852,2703.8,2703.3,1.17367967]
[1739618779675,7.39715,2703.8,2703.2,4.53181]
[1739618779873,3.69868,2703.7,2703.2,4.53181]
[1739618780513,0.7594,2704.0,2703.2,0.8326]
[1739618780807,8.21619,2703.6,2703.2,0.8326]
[1739618781104,3.69895,2703.5,2703.2,0.8326]
[1739618781330,3.69895,2703.5,2702.9,0.7929]
[1739618781331,3.69918,2703.3,2702.9,0.7929]
[1739618782712,0.8185,2703.2,2702.7,13.24283]
[1739618782887,0.8185,2703.2,2702.7,9.5429]
[1739618783276,4.51782,2703.2,2702.7,9.5429]
[1739618784193,3.69921,2703.3,2702.8,3.69986]
[1739618784383,4.5064,2703.4,2702.8,3.69986]
[1739618784578,4.5064,2703.4,2702.9,3.69971]
[1739618785184,4.50612,2703.6,2703.0,4.50111]
[1739618785411,4.94922164,2703.6,2703.1,3.69941]
[1739618785602,4.94922164,2703.6,2703.0,0.8016]
[1739618785919,0.8073,2703.6,2703.1,3.69933]
[1739618786235,0.8073,2703.6,2703.1,7.3987]
[1739618786397,3.69853,2703.8,2703.2,3.69918]
[1739618786583,4.50583,2703.8,2703.2,3.69918]
[1739618786999,4.50583,2703.8,2703.1,3.69933]
[1739618787185,4.50583,2703.8,2703.3,3.69916]
[1739618787610,5.548457,2703.8,2703.3,3.69916]
[1739618788008,3.0293,2704.1,2703.5,0.8016]
[1739618788187,3.69845,2703.9,2703.5,0.8016]
[1739618789430,0.267,2704.0,2703.5,0.8016]
[1739618789601,3.69838,2703.9,2703.5,0.8016]
[1739618789988,3.69838,2703.9,2703.3,4.47439]
[1739618790488,3.69838,2703.9,2703.3,8.17349]
[1739618790722,7.39685,2703.9,2703.3,4.47439]
[1739618791021,8.21723,2703.7,2703.3,0.7753]
[1739618791322,4.51851,2703.7,2703.1,4.47467]
[1739618791721,3.69898,2703.5,2703.1,0.7753]
[1739618791908,4.742946,2703.5,2703.1,0.7753]
[1739618792110,1.043966,2703.5,2702.9,9.70531]
[1739618792314,5.92088,2703.6,2703.0,3.69948]
[1739618792315,9.61976,2703.6,2703.0,3.69948]
[1739618792626,5.92088,2703.6,2703.0,3.69948]
[1739618793217,5.92088,2703.6,2702.9,9.70531]
[1739618793218,5.92084,2703.6,2702.9,9.70531]
[1739618793524,3.69898,2703.5,2702.9,9.70531]
[1739618793726,3.69898,2703.5,2702.9,13.40494]
[1739618794099,3.69914,2703.4,2702.9,9.70531]
[1739618794305,4.51894,2703.4,2702.9,9.70531]
[1739618794616,3.69932,2703.2,2702.9,5.2304]
[1739618795726,4.51894,2703.4,2702.9,5.2304]
[1739618795899,4.51893,2703.4,2702.8,3.69978]
[1739618796104,5.63461503,2703.4,2702.7,4.47521]
[1739618797392,4.51893,2703.4,2702.9,3.69965]
[1739618797627,0.8198,2703.4,2702.8,3.7368344]
[1739618797930,9.594914,2703.6,2702.8,3.7368344]
[1739618797931,5.92099,2703.5,2703.1,0.7753]
[1739618798091,4.493864,2703.6,2703.1,4.47465]
[1739618798746,0.267,2703.7,2703.2,3.69924]
[1739618799341,3.0,2703.8,2703.4,0.7753]
[1739618799647,6.69836,2703.9,2703.4,0.7753]
[1739618799826,3.69836,2703.9,2703.4,0.7753]
[1739618800446,4.78504,2704.0,2703.4,4.4743]
[1739618800647,4.78504,2704.0,2703.4,0.7753]
[1739618800845,3.69844,2703.9,2703.4,0.7753]
[1739618801212,5.5592924,2704.0,2703.4,4.47429]
[1739618801415,5.5592924,2704.0,2703.5,3.6989]
[1739618801620,3.69837,2703.9,2703.4,0.7753]
[1739618801817,1.8610524,2704.0,2703.4,0.7753]
[1739618802133,5.5592924,2704.0,2703.5,3.69889]
[1739618802936,9.2576124,2704.0,2703.5,3.69889]
[1739618803240,5.5592924,2704.0,2703.5,3.69889]
[1739618803437,5.5592924,2704.0,2703.4,0.7753]
[1739618803593,5.5592924,2704.0,2703.4,4.47426]
[1739618803798,5.5592924,2704.0,2703.4,0.7753]
[1739618804098,3.6985,2703.8,2703.4,0.7753]
[1739618804824,3.69864,2703.7,2703.4,0.7753]
[1739618805007,3.6985,2703.8,2703.4,0.7753]
[1739618805340,3.69864,2703.7,2703.2,4.45729]
[1739618806126,3.6985,2703.8,2703.2,4.45729]
[1739618806330,3.6985,2703.8,2703.3,7.39816]
[1739618806641,10.7054,2704.0,2703.4,3.69901]
[1739618806946,3.69837,2703.9,2703.4,3.69901]
[1739618807411,3.69837,2703.9,2703.3,3.69907]
[1739618807835,3.69857,2703.8,2703.3,3.69907]
[1739618808037,3.69863,2703.7,2703.2,4.45728]
[1739618808238,3.69857,2703.8,2703.2,4.45728]
[1739618808433,3.69857,2703.8,2703.2,0.758]
[1739618808639,3.69857,2703.8,2703.3,3.69914]
[1739618809412,7.0071,2704.0,2703.4,4.45695]
[1739618809615,6.1873,2704.0,2703.4,4.45695]
[1739618810140,3.9653,2704.0,2703.5,3.69883]
[1739618810853,3.69838,2703.9,2703.4,0.758]
[1739618811016,0.3701,2703.8,2703.4,0.758]
[1739618811222,3.69838,2703.9,2703.4,0.758]
[1739618811742,3.9653,2704.0,2703.4,4.45697]
[1739618812127,7.66361,2704.0,2703.4,4.45697]
[1739618812455,3.9653,2704.0,2703.4,4.45697]
[1739618813218,3.69836,2703.9,2703.4,4.45697]
[1739618813454,3.69836,2703.9,2703.4,0.758]
[1739618813651,4.46046,2703.9,2703.4,0.758]
[1739618813852,3.6985,2703.8,2703.4,0.758]
[1739618814021,3.69865,2703.7,2703.4,0.758]
[1739618814537,3.69865,2703.7,2703.2,0.7579]
[1739618814751,7.39741,2703.7,2703.2,0.7579]
[1739618814953,3.69865,2703.7,2703.2,0.7579]
[1739618815961,0.75503944,2704.2,2703.2,2.096603]
[1739618816167,0.36218564,2705.0,2703.2,2.096603]
[1739618816168,3.69631,2705.4,2704.2,3.69794]
[1739618816371,4.45908,2704.9,2704.2,3.69794]
[1739618816537,3.69728,2704.7,2704.1,4.45598]
[1739618816743,3.0,2704.3,2703.3,8.75]
[1739618816952,3.6982,2704.1,2703.5,0.7579]
[1739618817153,6.69787,2704.3,2703.5,0.7579]
[1739618817344,3.0,2704.2,2703.8,0.7579]
[1739618818051,0.2464,2704.0,2703.8,4.45636]
[1739618818358,0.2464,2704.0,2703.9,4.50646]
[1739618818781,0.2464,2704.0,2703.9,8.0122167]
[1739618819163,0.2464,2704.0,2703.9,13.25646]
[1739618820476,0.2464,2704.0,2703.9,16.25646]
[1739618820786,0.2464,2704.0,2703.9,19.03465414]
[1739618821279,0.2464,2704.0,2703.9,24.26505414]
[1739618822080,0.2464,2704.0,2703.9,21.45266511]
[1739618822287,0.2464,2704.0,2703.9,21.26505414]
[1739618823984,3.69654,2705.3,2704.8,3.69712]
[1739618824142,0.355,2705.2,2704.8,7.2028767]
[1739618824345,0.355,2705.2,2704.8,3.5057567]
[1739618824577,4.49627,2705.5,2704.8,3.5057567]
[1739618824777,4.49627,2705.5,2704.9,3.69696]
[1739618826273,4.49627,2705.5,2704.9,3.69689]
[1739618826651,4.49627,2705.5,2704.9,3.7338559]
[1739618826962,3.6962,2705.5,2705.1,0.8081]
[1739618827979,3.69592,2705.7,2705.1,4.50471]
[1739618828146,3.69592,2705.7,2705.1,8.0104667]
[1739618828353,3.69592,2705.7,2705.2,3.69655]
[1739618828657,3.69592,2705.7,2705.1,8.0104667]
[1739618828867,3.0,2705.8,2705.2,4.49754667]
[1739618829052,0.27,2705.9,2705.3,0.036961]
[1739618829251,0.27,2705.9,2705.4,3.69628]
[1739618829581,3.0,2705.8,2705.4,3.5057567]
[1739618829752,3.0,2705.8,2705.5,5.2304]
[1739618829944,3.0,2705.8,2705.5,8.92646]
[1739618830188,0.27,2705.9,2705.5,5.2304]